fUST/lending_fUST_20250726
["ID","MTS","AMOUNT","RATE_DAILY","PERIOD"]
[375090026,1753524645480,-460.0,0.00020273,2]
[375090027,1753524645490,-460.0,0.00020273,2]
[375090028,1753524645500,-460.0,0.00020273,2]
[375090029,1753524645509,-460.0,0.00020273,2]
[375090030,1753524645519,-887.6,0.00020273,2]
[375090031,1753524645528,-460.0,0.00020273,2]
[375090032,1753524645537,-460.0,0.00020273,2]
[375090033,1753524645547,-460.0,0.00020273,2]
[375090034,1753524645556,-460.0,0.00020273,2]
[375090035,1753524645565,-460.0,0.00020273,2]
[375090036,1753524645575,-460.0,0.00020273,2]
[375090037,1753524645584,-549.3,0.00020273,2]
[375090038,1753524645594,-460.0,0.00020273,2]
[375090039,1753524645603,-460.0,0.00020273,2]
[375090040,1753524645612,-460.0,0.00020273,2]
[375090041,1753524645622,-460.0,0.00020273,2]
[375090042,1753524645631,-460.0,0.00020273,2]
[375090043,1753524645641,-867.33,0.00020273,2]
[375090044,1753524645651,-562.83,0.00020273,2]
[375090045,1753524645660,-460.0,0.00020273,2]
[375090046,1753524645669,-460.0,0.00020273,2]
[375090047,1753524645680,-819.09,0.00020273,2]
[375090048,1753524645690,-516.33,0.00020273,2]
[375090049,1753524645699,-474.21,0.00020273,2]
[375090050,1753524645709,-460.0,0.00020273,2]
[375090051,1753524645718,-3417.64,0.00020273,2]
[375090052,1753524645727,-460.0,0.00020273,2]
[375090053,1753524645737,-3106.73,0.00020273,2]
[375090055,1753524645747,-460.0,0.00020273,2]
[375090056,1753524645756,-2752.09,0.00020273,2]
[375090057,1753524645765,-460.0,0.00020273,2]
[375090058,1753524645775,-460.0,0.00020273,2]
[375090059,1753524645784,-1103.46,0.00020273,2]
[375090060,1753524645794,-460.0,0.00020273,2]
[375090061,1753524645802,-2082.92,0.00020273,2]
[375090062,1753524645812,-720.9,0.00020273,2]
[375090063,1753524645821,-460.0,0.00020273,2]
[375090064,1753524645919,-7171.72,0.00020273,2]
[375090065,1753524645930,-460.0,0.00020273,2]
[375090066,1753524645939,-425.74184596,0.00020273,2]
[375090067,1753524645948,-460.0,0.00020273,2]
[375090068,1753524645958,-460.0,0.00020273,2]
[375090069,1753524645969,-1007.54,0.00020273,2]
[375090070,1753524645979,-460.0,0.00020273,2]
[375090071,1753524645988,-460.0,0.00020273,2]
[375090072,1753524645997,-719.35,0.00020273,2]
[375090074,1753524646006,-2022.73,0.00020273,2]
[375090076,1753524646015,-852.95,0.00020273,2]
[375090077,1753524646025,-460.0,0.00020273,2]
[375090078,1753524646034,-1007.24,0.00020273,2]
[375090079,1753524646043,-460.0,0.00020273,2]
[375090080,1753524646053,-609.39,0.00020273,2]
[375090081,1753524646063,-879.98,0.00020273,2]
[375090082,1753524646072,-835.25,0.00020273,2]
[375090083,1753524646081,-4064.27,0.00020273,2]
[375090084,1753524646090,-1719.9,0.00020273,2]
[375090085,1753524646100,-549.46,0.00020273,2]
[375090086,1753524646109,-460.0,0.00020273,2]
[375090087,1753524646118,-568.95,0.00020273,2]
[375090088,1753524646127,-4043.03,0.00020273,2]
[375090089,1753524646137,-460.0,0.00020273,2]
[375090090,1753524646146,-460.0,0.00020273,2]
[375090091,1753524646155,-460.0,0.00020273,2]
[375090093,1753524646165,-739.41,0.00020273,2]
[375090095,1753524646174,-646.27,0.00020273,2]
[375090096,1753524646183,-3673.84,0.00020273,2]
[375090097,1753524646192,-460.0,0.00020273,2]
[375090098,1753524646201,-696.35,0.00020273,2]
[375090100,1753524646211,-460.0,0.00020273,2]
[375090101,1753524646220,-460.0,0.00020273,2]
[375090103,1753524646230,-595.26246521,0.00020273,2]
[375090105,1753524646239,-720.32,0.00020273,2]
[375090107,1753524646248,-923.36,0.00020273,2]
[375090109,1753524646257,-1367.32,0.00020273,2]
[375090111,1753524646266,-2470.83,0.00020273,2]
[375090113,1753524646275,-11541.5,0.00020273,2]
[375090115,1753524646284,-460.0,0.00020273,2]
[375090117,1753524646294,-1094.96,0.00020273,2]
[375090119,1753524646303,-2440.18,0.00020273,2]
[375090121,1753524646312,-3385.3,0.00020273,2]
[375090123,1753524646321,-460.0,0.00020273,2]
[375090125,1753524646330,-590.02,0.00020273,2]
[375090127,1753524646340,-1097.57,0.00020273,2]
[375090129,1753524646349,-460.0,0.00020273,2]
[375090131,1753524646359,-1856.23,0.00020273,2]
[375090133,1753524646368,-460.0,0.00020273,2]
[375090135,1753524646377,-460.0,0.00020273,2]
[375090137,1753524646387,-680.86,0.00020273,2]
[375090139,1753524646396,-3126.3,0.00020273,2]
[375090140,1753524646406,-803.62,0.00020273,2]
[375090141,1753524646416,-684.17,0.00020273,2]
[375090142,1753524646426,-460.0,0.00020273,2]
[375090143,1753524646435,-460.0,0.00020273,2]
[375090144,1753524646445,-1101.85,0.00020273,2]
[375090145,1753524646455,-1015.84,0.00020273,2]
[375090146,1753524646464,-572.62,0.00020273,2]
[375090147,1753524646473,-1569.34,0.00020273,2]
[375090148,1753524646482,-361.31125099,0.00020273,2]
[375090149,1753524646491,-460.0,0.00020273,2]
[375090150,1753524646501,-151.0,0.00020274,2]
[375090151,1753524646511,-151.0,0.00020274,2]
[375090152,1753524646520,-151.0,0.00020274,2]
[375090153,1753524646530,-151.0,0.00020274,2]
[375090154,1753524646539,-151.0,0.00020274,2]
[375090155,1753524646548,-151.0,0.00020274,2]
[375090156,1753524646558,-151.0,0.00020274,2]
[375090157,1753524646567,-151.28167398,0.00020274,2]
[375090158,1753524646577,-151.00525167,0.00020274,2]
[375090159,1753524646586,-151.0,0.00020274,2]
[375090160,1753524646595,-300.48934009,0.00020274,2]
[375090161,1753524646605,-151.0,0.00020274,2]
[375090162,1753524646614,-743.0,0.00020274,2]
[375090163,1753524646624,-151.0,0.00020274,2]
[375090164,1753524646634,-151.92336044,0.00020274,2]
[375090165,1753524646643,-151.0,0.00020274,2]
[375090166,1753524646653,-151.0,0.00020274,2]
[375090167,1753524646663,-151.0,0.00020274,2]
[375090168,1753524646672,-151.0,0.00020274,2]
[375090169,1753524646681,-632.0,0.00020274,2]
[375090170,1753524646690,-151.0,0.00020274,2]
[375090171,1753524646700,-151.0,0.00020274,2]
[375090172,1753524646709,-151.0,0.00020274,2]
[375090173,1753524646718,-151.0,0.00020274,2]
[375090174,1753524646727,-151.0,0.00020274,2]
[375090175,1753524646737,-677.0,0.00020339,2]
[375090176,1753524646746,-317.257115,0.00020404,8]
[375090177,1753524646755,-322.5,0.00020437,3]
[375090178,1753524646768,-160.0,0.00020437,2]
[375090179,1753524646778,-1000.0,0.00020521,2]
[375090180,1753524646789,-1000.0,0.00020521,2]
[375090181,1753524646799,-460.0,0.00020547,2]
[375090182,1753524646809,-286.93799333,0.00020547,2]
[375090183,1753524646820,-460.0,0.00020547,2]
[375090184,1753524646830,-490.99,0.00020547,2]
[375090185,1753524646841,-695.61,0.00020547,2]
[375090186,1753524646852,-460.0,0.00020547,2]
[375090187,1753524646863,-460.0,0.00020547,2]
[375090188,1753524646874,-460.0,0.00020547,2]
[375090189,1753524646884,-460.0,0.00020547,2]
[375090190,1753524646895,-581.27,0.00020547,2]
[375090191,1753524646904,-460.0,0.00020547,2]
[375090192,1753524646914,-524.05,0.00020547,2]
[375090193,1753524646924,-1015.62,0.00020547,2]
[375090194,1753524646933,-879.74,0.00020547,2]
[375090195,1753524646943,-460.0,0.00020547,2]
[375090196,1753524646952,-460.0,0.00020547,2]
[375090197,1753524646963,-460.0,0.00020547,2]
[375090198,1753524646977,-460.0,0.00020547,2]
[375090199,1753524646986,-887.6,0.00020547,2]
[375090200,1753524646995,-460.0,0.00020547,2]
[375090201,1753524647004,-460.0,0.00020547,2]
[375090202,1753524647015,-460.0,0.00020547,2]
[375090203,1753524647024,-460.0,0.00020547,2]
[375090204,1753524647034,-460.0,0.00020547,2]
[375090205,1753524647043,-460.0,0.00020547,2]
[375090206,1753524647054,-549.3,0.00020547,2]
[375090207,1753524647064,-460.0,0.00020547,2]
[375090208,1753524647073,-460.0,0.00020547,2]
[375090209,1753524647082,-460.0,0.00020547,2]
[375090210,1753524647091,-460.0,0.00020547,2]
[375090211,1753524647101,-460.0,0.00020547,2]
[375090212,1753524647110,-867.33,0.00020547,2]
[375090213,1753524647119,-562.83,0.00020547,2]
[375090214,1753524647129,-460.0,0.00020547,2]
[375090215,1753524647138,-460.0,0.00020547,2]
[375090216,1753524647147,-819.09,0.00020547,2]
[375090217,1753524647157,-516.33,0.00020547,2]
[375090218,1753524647167,-474.21,0.00020547,2]
[375090219,1753524647176,-460.0,0.00020547,2]
[375090220,1753524647185,-3417.64,0.00020547,2]
[375090221,1753524647194,-460.0,0.00020547,2]
[375090222,1753524647204,-3106.73,0.00020547,2]
[375090223,1753524647213,-460.0,0.00020547,2]
[375090224,1753524647222,-460.0,0.00020547,2]
[375090225,1753524647231,-460.0,0.00020547,2]
[375090226,1753524647240,-1103.46,0.00020547,2]
[375090227,1753524647249,-2752.09,0.00020547,2]
[375090228,1753524647258,-460.0,0.00020547,2]
[375090229,1753524647267,-2082.92,0.00020547,2]
[375090230,1753524647277,-720.9,0.00020547,2]
[375090231,1753524647286,-460.0,0.00020547,2]
[375090232,1753524647296,-7171.72,0.00020547,2]
[375090233,1753524647306,-460.0,0.00020547,2]
[375090234,1753524647315,-460.0,0.00020547,2]
[375090235,1753524647325,-1007.54,0.00020547,2]
[375090236,1753524647335,-460.0,0.00020547,2]
[375090237,1753524647345,-460.0,0.00020547,2]
[375090238,1753524647355,-460.0,0.00020547,2]
[375090239,1753524647364,-719.35,0.00020547,2]
[375090240,1753524647374,-2022.73,0.00020547,2]
[375090241,1753524647384,-852.95,0.00020547,2]
[375090242,1753524647393,-460.0,0.00020547,2]
[375090243,1753524647479,-1007.24,0.00020547,2]
[375090244,1753524647490,-460.0,0.00020547,2]
[375090245,1753524647500,-609.39,0.00020547,2]
[375090246,1753524647510,-879.98,0.00020547,2]
[375090247,1753524647522,-835.25,0.00020547,2]
[375090248,1753524647531,-4064.27,0.00020547,2]
[375090249,1753524647541,-1719.9,0.00020547,2]
[375090250,1753524647551,-549.46,0.00020547,2]
[375090251,1753524647563,-460.0,0.00020547,2]
[375090252,1753524647574,-568.95,0.00020547,2]
[375090253,1753524647584,-4043.03,0.00020547,2]
[375090254,1753524647594,-460.0,0.00020547,2]
[375090255,1753524647603,-460.0,0.00020547,2]
[375090256,1753524647613,-299.99209885,0.00020547,2]
[375090257,1753524647623,-622.76603529,0.00020547,2]
[375090258,1753524647888,-537.0600867,0.00020273,2]
[375090259,1753524647901,-4664.1999133,0.00020273,2]
[375090260,1753524647912,-116.64396471,0.00020547,2]
[375090261,1753524647921,-646.27,0.00020547,2]
[375090262,1753524647931,-3673.84,0.00020547,2]
[375090263,1753524647940,-460.0,0.00020547,2]
[375090264,1753524647952,-696.35,0.00020547,2]
[375090265,1753524647963,-460.0,0.00020547,2]
[375090266,1753524647978,-460.0,0.00020547,2]
[375090267,1753524647988,-720.32,0.00020547,2]
[375090268,1753524647998,-923.36,0.00020547,2]
[375090269,1753524648008,-1367.32,0.00020547,2]
[375090270,1753524648018,-2470.83,0.00020547,2]
[375090271,1753524648027,-11541.5,0.00020547,2]
[375090272,1753524648037,-460.0,0.00020547,2]
[375090273,1753524648046,-1094.96,0.00020547,2]
[375090274,1753524648056,-2440.18,0.00020547,2]
[375090275,1753524648066,-3385.3,0.00020547,2]
[375090276,1753524648076,-460.0,0.00020547,2]
[375090277,1753524648086,-590.02,0.00020547,2]
[375090278,1753524648096,-3307.86132354,0.00020547,2]
[375090279,1753524648107,-1097.57,0.00020547,2]
[375090280,1753524648117,-460.0,0.00020547,2]
[375090281,1753524648127,-1856.23,0.00020547,2]
[375090282,1753524648138,-460.0,0.00020547,2]
[375090283,1753524648148,-460.0,0.00020547,2]
[375090284,1753524648158,-680.86,0.00020547,2]
[375090285,1753524648168,-3126.3,0.00020547,2]
[375090286,1753524648178,-803.62,0.00020547,2]
[375090287,1753524648188,-684.17,0.00020547,2]
[375090288,1753524648197,-460.0,0.00020547,2]
[375090289,1753524648208,-460.0,0.00020547,2]
[375090290,1753524648217,-1101.85,0.00020547,2]
[375090291,1753524648227,-1015.84,0.00020547,2]
[375090292,1753524648237,-572.62,0.00020547,2]
[375090293,1753524648246,-1569.34,0.00020547,2]
[375090294,1753524648256,-460.0,0.00020547,2]
[375090295,1753524648266,-5201.26,0.00020547,2]
[375090296,1753524648277,-151.0,0.00020548,2]
[375090297,1753524648286,-151.0,0.00020548,2]
[375090298,1753524648296,-152.98419751,0.00020548,2]
[375090299,1753524648306,-151.0,0.00020548,2]
[375090300,1753524648316,-743.0,0.00020548,2]
[375090301,1753524648326,-151.0,0.00020548,2]
[375090302,1753524648335,-632.0,0.00020548,2]
[375090303,1753524648346,-151.0,0.00020548,2]
[375090304,1753524648356,-200.51698808,0.00020548,2]
[375090305,1753524648365,-151.0,0.00020548,2]
[375090306,1753524648377,-151.0,0.00020548,2]
[375090307,1753524648387,-3009.25977473,0.00020614,2]
[375090308,1753524648400,-1037.77424343,0.00020614,2]
[375090309,1753524648678,-359.04,0.00020119,2]
[375090310,1753524648688,-336.22484918,0.00020614,2]
[375090311,1753524648698,-3301.33283952,0.0002063,2]
[375090312,1753524648708,-677.0,0.00020638,2]
[375090313,1753524648718,-151.0,0.000207,3]
[375090314,1753524648728,-151.0,0.000208,4]
[375090315,1753524648738,-231.28369723,0.00020809,2]
[375090316,1753524648748,-444.54,0.00020812,3]
[375090317,1753524648758,-316.51593058,0.00020821,2]
[375090318,1753524648768,-151.0,0.00020821,2]
[375090319,1753524648777,-460.0,0.00020821,2]
[375090320,1753524648870,-460.0,0.00020821,2]
[375090321,1753524648880,-490.99,0.00020821,2]
[375090322,1753524648890,-695.61,0.00020821,2]
[375090323,1753524648900,-255.85187146,0.00020821,2]
[375090324,1753524648913,-204.14812854,0.00020821,2]
[375090325,1753524648923,-460.0,0.00020821,2]
[375090326,1753524648933,-242.43979577,0.00020821,2]
[375090327,1753524648944,-460.0,0.00020821,2]
[375090328,1753524648954,-581.27,0.00020821,2]
[375090329,1753524648964,-524.05,0.00020821,2]
[375090330,1753524648977,-1015.62,0.00020821,2]
[375090331,1753524648987,-879.74,0.00020821,2]
[375090332,1753524648997,-460.0,0.00020821,2]
[375090333,1753524649006,-460.0,0.00020821,2]
[375090334,1753524649018,-460.0,0.00020821,2]
[375090335,1753524649028,-460.0,0.00020821,2]
[375090336,1753524649038,-887.6,0.00020821,2]
[375090337,1753524649048,-460.0,0.00020821,2]
[375090338,1753524649060,-460.0,0.00020821,2]
[375090339,1753524649071,-460.0,0.00020821,2]
[375090340,1753524649080,-460.0,0.00020821,2]
[375090341,1753524649091,-460.0,0.00020821,2]
[375090342,1753524649101,-460.0,0.00020821,2]
[375090343,1753524649111,-549.3,0.00020821,2]
[375090344,1753524649120,-460.0,0.00020821,2]
[375090345,1753524649131,-460.0,0.00020821,2]
[375090346,1753524649141,-460.0,0.00020821,2]
[375090347,1753524649150,-460.0,0.00020821,2]
[375090348,1753524649160,-460.0,0.00020821,2]
[375090349,1753524649170,-867.33,0.00020821,2]
[375090350,1753524649180,-562.83,0.00020821,2]
[375090351,1753524649190,-460.0,0.00020821,2]
[375090352,1753524649200,-460.0,0.00020821,2]
[375090353,1753524649210,-819.09,0.00020821,2]
[375090354,1753524649221,-474.21,0.00020821,2]
[375090355,1753524649231,-460.0,0.00020821,2]
[375090356,1753524649241,-3417.64,0.00020821,2]
[375090357,1753524649251,-460.0,0.00020821,2]
[375090358,1753524649261,-3106.73,0.00020821,2]
[375090359,1753524649271,-460.0,0.00020821,2]
[375090360,1753524649281,-460.0,0.00020821,2]
[375090361,1753524649290,-460.0,0.00020821,2]
[375090362,1753524649301,-1103.46,0.00020821,2]
[375090363,1753524649311,-2752.09,0.00020821,2]
[375090364,1753524649321,-460.0,0.00020821,2]
[375090365,1753524649331,-2082.92,0.00020821,2]
[375090366,1753524649341,-720.9,0.00020821,2]
[375090367,1753524649352,-460.0,0.00020821,2]
[375090368,1753524649363,-7171.72,0.00020821,2]
[375090369,1753524649373,-460.0,0.00020821,2]
[375090370,1753524649382,-460.0,0.00020821,2]
[375090371,1753524649392,-1007.54,0.00020821,2]
[375090372,1753524649402,-460.0,0.00020821,2]
[375090373,1753524649411,-460.0,0.00020821,2]
[375090374,1753524649420,-460.0,0.00020821,2]
[375090375,1753524649429,-719.35,0.00020821,2]
[375090376,1753524649439,-2022.73,0.00020821,2]
[375090377,1753524649449,-852.95,0.00020821,2]
[375090378,1753524649463,-356.87582617,0.00020821,2]
[375090379,1753524649472,-1007.24,0.00020821,2]
[375090380,1753524649483,-460.0,0.00020821,2]
[375090381,1753524649493,-609.39,0.00020821,2]
[375090382,1753524649502,-879.98,0.00020821,2]
[375090383,1753524649512,-835.25,0.00020821,2]
[375090384,1753524649522,-1719.9,0.00020821,2]
[375090385,1753524649532,-4064.27,0.00020821,2]
[375090386,1753524649549,-549.46,0.00020821,2]
[375090387,1753524649566,-460.0,0.00020821,2]
[375090388,1753524649579,-568.95,0.00020821,2]
[375090389,1753524649596,-4043.03,0.00020821,2]
[375090390,1753524649612,-469.28422977,0.00020821,2]
[375090391,1753524649628,-460.0,0.00020821,2]
[375090392,1753524649644,-739.41,0.00020821,2]
[375090393,1753524649660,-646.27,0.00020821,2]
[375090394,1753524649677,-3673.84,0.00020821,2]
[375090395,1753524649693,-460.0,0.00020821,2]
[375090396,1753524649708,-299.46739146,0.00020821,2]
[375090397,1753524649728,-396.88260854,0.00020821,2]
[375090398,1753524649743,-460.0,0.00020821,2]
[375090399,1753524649760,-460.0,0.00020821,2]
[375090400,1753524649776,-720.32,0.00020821,2]
[375090401,1753524649794,-923.36,0.00020821,2]
[375090402,1753524649812,-1367.32,0.00020821,2]
[375090403,1753524649823,-1096.52523016,0.00020821,2]
[375090404,1753524649840,-1374.30476984,0.00020821,2]
[375090405,1753524649856,-531.01849329,0.00020821,2]
[375090406,1753524649879,-822.72868412,0.00020821,2]
[375090407,1753524651047,-10187.75282259,0.00020821,2]
[375090408,1753524651057,-460.0,0.00020821,2]
[375090409,1753524651067,-2440.18,0.00020821,2]
[375090410,1753524651077,-3385.3,0.00020821,2]
[375090411,1753524651086,-599.53733518,0.00020821,2]
[375090412,1753524651095,-590.02,0.00020821,2]
[375090413,1753524651105,-1097.57,0.00020821,2]
[375090414,1753524651114,-460.0,0.00020821,2]
[375090415,1753524651123,-1856.23,0.00020821,2]
[375090416,1753524651132,-460.0,0.00020821,2]
[375090417,1753524651142,-460.0,0.00020821,2]
[375090418,1753524651151,-680.86,0.00020821,2]
[375090419,1753524651160,-3126.3,0.00020821,2]
[375090420,1753524651170,-803.62,0.00020821,2]
[375090421,1753524651179,-684.17,0.00020821,2]
[375090422,1753524651188,-460.0,0.00020821,2]
[375090423,1753524651198,-460.0,0.00020821,2]
[375090424,1753524651207,-1101.85,0.00020821,2]
[375090425,1753524651217,-1015.84,0.00020821,2]
[375090426,1753524651226,-572.62,0.00020821,2]
[375090427,1753524651235,-1569.34,0.00020821,2]
[375090428,1753524651245,-460.0,0.00020821,2]
[375090429,1753524651255,-5201.26,0.00020821,2]
[375090430,1753524651265,-151.0,0.00020822,2]
[375090431,1753524651275,-245.0,0.00020822,2]
[375090432,1753524651284,-151.0,0.00020822,2]
[375090433,1753524651294,-743.0,0.00020822,2]
[375090434,1753524651303,-151.0,0.00020822,2]
[375090435,1753524651313,-632.0,0.00020822,2]
[375090436,1753524651322,-151.0,0.00020822,2]
[375090437,1753524651332,-151.0,0.00020822,2]
[375090438,1753524651341,-322.5,0.00020843,4]
[375090439,1753524651351,-168.0,0.0002088,2]
[375090440,1753524651360,-677.0,0.00020888,2]
[375090441,1753524651370,-677.0,0.00020894,2]
[375090442,1753524651380,-2000.0,0.00020896,3]
[375090443,1753524651390,-250.25192464,0.000209,2]
[375090444,1753524651400,-151.0,0.000209,3]
[375090445,1753524651410,-153.0,0.00020959,2]
[375090446,1753524651419,-153.0,0.00020959,2]
[375090447,1753524651429,-153.0,0.00020959,2]
[375090448,1753524651438,-153.0,0.00020959,2]
[375090449,1753524651447,-153.0,0.00020959,2]
[375090450,1753524651457,-153.0,0.00020959,2]
[375090451,1753524651467,-153.0,0.00020959,2]
[375090452,1753524651477,-153.0,0.00020959,2]
[375090453,1753524651486,-153.0,0.00020959,2]
[375090454,1753524651496,-1172.0,0.0002096,2]
[375090455,1753524651505,-260.0,0.00020985,2]
[375090456,1753524651515,-153.0,0.00020986,2]
[375090457,1753524651524,-153.0,0.00020986,2]
[375090458,1753524651534,-153.0,0.00020986,2]
[375090459,1753524651543,-153.0,0.00020986,2]
[375090460,1753524651552,-153.0,0.00020986,2]
[375090461,1753524651561,-306.0,0.00020986,2]
[375090462,1753524651570,-306.0,0.00020986,2]
[375090463,1753524651580,-677.0,0.00020993,2]
[375090464,1753524651589,-270.41640246,0.00021,2]
[375090465,1753524651599,-46356.24867432,0.00021,2]
[375090466,1753524651716,-9772.47379506,0.00021,2]
[375090467,1753524651725,-202.28275289,0.00021,2]
[375090468,1753524651736,-152.0,0.00021,2]
[375090469,1753524651748,-151.0,0.00021,2]
[375090470,1753524651758,-685.90981069,0.00021,2]
[375090471,1753524651770,-292.90480243,0.00021,2]
[375090472,1753524651782,-611.0,0.00021,2]
[375090473,1753524651799,-1410.18538688,0.00021,2]
[375090474,1753524651809,-383.73163318,0.0002101,2]
[375090475,1753524651820,-2616.26836682,0.0002101,2]
[375090476,1753524651830,-677.0,0.00021014,2]
[375090477,1753524651839,-414.79198428,0.0002102,2]
[375090481,1753525246597,166.63171,0.00013699,2]
[375090512,1753525832652,-150.0,0.000189,2]
[375090513,1753525832662,-161.69408082,0.00019078,2]
[375090514,1753525832672,-223.0315306,0.00019166,2]
[375090515,1753525832681,-666.83,0.00019168,3]
[375090516,1753525832690,-222.27,0.00019168,3]
[375090517,1753525832700,-501.05926252,0.00019173,2]
[375090518,1753525832709,-516.03347122,0.00019173,2]
[375090519,1753525832719,-500.0,0.00019173,2]
[375090521,1753525832728,-500.0,0.00019173,2]
[375090522,1753525832738,-758.0,0.00019175,2]
[375090524,1753525832747,-300.0,0.00019176,2]
[375090526,1753525832757,-300.0,0.00019176,2]
[375090527,1753525832766,-500.0,0.00019177,2]
[375090529,1753525832776,-500.0,0.00019177,2]
[375090530,1753525832786,-500.0,0.00019177,2]
[375090531,1753525832795,-341.10576089,0.00019177,2]
[375090532,1753525832805,-384.97710483,0.00019177,2]
[375090533,1753525832815,-244.99878912,0.00019177,2]
[375090534,1753525832826,-255.00121088,0.00019177,2]
[375090535,1753525832835,-155.56675762,0.00019177,2]
[375090536,1753525832844,-460.0,0.00019178,2]
[375090538,1753525832854,-460.0,0.00019178,2]
[375090539,1753525832864,-462.73118339,0.00019178,2]
[375090540,1753525832874,-133.43528325,0.00019178,2]
[375090541,1753525832898,-338.40180738,0.00019178,2]
[375090543,1753525832908,-460.0,0.00019178,2]
[375090545,1753525832918,-509.51,0.00019178,2]
[375090547,1753525832927,-460.0,0.00019178,2]
[375090548,1753525832936,-377.29584158,0.00019178,2]
[375090549,1753525832946,-460.0,0.00019178,2]
[375090550,1753525832957,-460.0,0.00019178,2]
[375090551,1753525832967,-460.0,0.00019178,2]
[375090552,1753525832976,-460.0,0.00019178,2]
[375090553,1753525832986,-460.0,0.00019178,2]
[375090554,1753525832996,-460.0,0.00019178,2]
[375090555,1753525833006,-460.0,0.00019178,2]
[375090556,1753525833015,-460.0,0.00019178,2]
[375090557,1753525833025,-460.0,0.00019178,2]
[375090558,1753525833034,-460.0,0.00019178,2]
[375090559,1753525833043,-460.80743503,0.00019178,2]
[375090560,1753525833053,-672.54,0.00019178,2]
[375090561,1753525833063,-460.0,0.00019178,2]
[375090562,1753525833073,-461.83310505,0.00019178,2]
[375090563,1753525833083,-460.0,0.00019178,2]
[375090564,1753525833095,-460.0,0.00019178,2]
[375090565,1753525833105,-460.0,0.00019178,2]
[375090566,1753525833114,-460.0,0.00019178,2]
[375090567,1753525833124,-460.0,0.00019178,2]
[375090568,1753525833134,-460.0,0.00019178,2]
[375090569,1753525833143,-460.0,0.00019178,2]
[375090570,1753525833153,-460.0,0.00019178,2]
[375090571,1753525833163,-462.16398892,0.00019178,2]
[375090572,1753525833172,-461.12172303,0.00019178,2]
[375090573,1753525833182,-460.0,0.00019178,2]
[375090574,1753525833192,-602.0158572,0.00019178,2]
[375090575,1753525833203,-460.0,0.00019178,2]
[375090576,1753525833213,-460.0,0.00019178,2]
[375090577,1753525833222,-460.0,0.00019178,2]
[375090578,1753525833232,-463.12765611,0.00019178,2]
[375090579,1753525833242,-461.40002073,0.00019178,2]
[375090580,1753525833251,-460.0,0.00019178,2]
[375090581,1753525833262,-460.0,0.00019178,2]
[375090582,1753525833271,-460.0,0.00019178,2]
[375090583,1753525833281,-460.0,0.00019178,2]
[375090584,1753525833291,-460.0,0.00019178,2]
[375090585,1753525833300,-460.0,0.00019178,2]
[375090586,1753525833310,-460.0,0.00019178,2]
[375090587,1753525833320,-460.0,0.00019178,2]
[375090588,1753525833330,-460.0,0.00019178,2]
[375090589,1753525833340,-460.0,0.00019178,2]
[375090590,1753525833350,-390.70756936,0.00019178,2]
[375090591,1753525833360,-462.11703049,0.00019178,2]